bitfinex/quotes_BTCUSD_20250403
["timestamp","ask_amount","ask_price","bid_price","bid_amount"]
[1743676501234,0.24,83320.0,83319.0,0.7087986]
[1743676501434,0.24,83320.0,83319.0,0.82303945]
[1743676502062,0.0001685,83334.0,83333.0,0.36224085]
[1743676502262,0.0001683,83374.0,83343.0,0.25197]
[1743676502463,0.0101684,83344.0,83343.0,0.77106645]
[1743676502662,0.2301684,83344.0,83343.0,0.1645556]
[1743676502893,0.4701374,83344.0,83343.0,0.1167556]
[1743676503101,0.011999,83339.0,83332.0,0.049]
[1743676503302,0.469984,83339.0,83333.0,0.3567536]
[1743676503504,0.23,83339.0,83336.0,0.23999]
[1743676503702,0.23,83339.0,83337.0,0.1167556]
[1743676503703,0.02701361,83339.0,83337.0,0.1167556]
[1743676503947,0.27899661,83339.0,83337.0,0.1167556]
[1743676504183,0.02701361,83339.0,83337.0,0.1167556]
[1743676504758,0.02701361,83339.0,83338.0,0.011999]
[1743676505056,0.02701361,83339.0,83338.0,0.1287546]
[1743676505257,0.02701361,83339.0,83338.0,0.1167556]
[1743676506002,0.24,83334.0,83328.0,0.240013]
[1743676506129,0.251994,83335.0,83334.0,0.0003368]
[1743676506325,0.511994,83335.0,83334.0,0.0003368]
[1743676509668,0.26,83335.0,83334.0,0.0003368]
[1743676509872,0.271999,83335.0,83334.0,0.0003368]
[1743676511702,0.511994,83335.0,83334.0,0.0003368]
[1743676512302,0.26,83335.0,83334.0,0.0003368]
[1743676513051,0.271999,83335.0,83334.0,0.0003368]
[1743676513461,0.511994,83335.0,83334.0,0.0003368]
[1743676515093,0.26,83335.0,83334.0,0.0003368]
[1743676515295,0.26,83335.0,83334.0,0.3690894]
[1743676516902,0.26,83335.0,83334.0,0.37658822]
[1743676517503,0.26,83335.0,83334.0,0.12459122]
[1743676517858,0.511994,83335.0,83334.0,0.12459122]
[1743676518092,0.26,83335.0,83334.0,0.12459122]
[1743676518505,0.499995,83335.0,83334.0,0.1170924]
[1743676518849,0.511994,83335.0,83334.0,0.1170924]
[1743676519051,0.511994,83335.0,83334.0,0.0003368]
[1743676520341,0.499995,83335.0,83334.0,0.0003368]
[1743676521191,0.26,83335.0,83334.0,0.0003368]
[1743676521939,0.511994,83335.0,83334.0,0.0003368]
[1743676523161,0.26,83335.0,83334.0,0.0003368]
[1743676523290,0.26,83335.0,83334.0,0.3690894]
[1743676526350,0.26,83335.0,83334.0,0.37658744]
[1743676527264,0.26,83335.0,83334.0,0.12459044]
[1743676527464,0.511994,83335.0,83334.0,0.1170924]
[1743676528070,0.499995,83335.0,83334.0,0.1170924]
[1743676528312,0.26,83335.0,83334.0,0.1170924]
[1743676528989,0.499995,83335.0,83334.0,0.0003368]
[1743676529197,0.511994,83335.0,83334.0,0.0003368]
[1743676532247,0.851994,83335.0,83334.0,0.0003368]
[1743676535170,0.26,83335.0,83334.0,0.0003368]
[1743676535329,0.26,83335.0,83334.0,0.2523338]
[1743676535532,0.26,83335.0,83334.0,0.0003368]
[1743676536033,0.511994,83335.0,83334.0,0.0003368]
[1743676539516,0.95952784,83335.0,83334.0,8e-07]
[1743676539732,1.12538344,83335.0,83334.0,8e-07]
[1743676540556,1.14492429,83335.0,83334.0,8e-07]
[1743676541297,1.14592429,83335.0,83334.0,8e-07]
[1743676541594,1.14492429,83335.0,83334.0,8e-07]
[1743676541800,1.14592429,83335.0,83334.0,8e-07]
[1743676541934,1.14492429,83335.0,83334.0,8e-07]
[1743676543160,1.1656819,83335.0,83334.0,8e-07]
[1743676543339,1.1676819,83335.0,83334.0,8e-07]
[1743676543948,1.1686819,83335.0,83334.0,8e-07]
[1743676544131,1.1716819,83335.0,83334.0,8e-07]
[1743676547440,0.252064,83312.0,83287.0,0.0001687]
[1743676547642,0.492064,83312.0,83287.0,0.0001687]
[1743676548724,0.480061,83312.0,83287.0,0.0001687]
[1743676549017,0.492064,83312.0,83294.0,0.240111]
[1743676549243,0.492064,83312.0,83292.0,0.012005]
[1743676549398,0.492064,83312.0,83294.0,0.240112]
[1743676549601,0.492064,83312.0,83311.0,0.0010003]
[1743676551027,0.832064,83312.0,83311.0,0.0010003]
[1743676552603,0.832064,83312.0,83311.0,3e-07]
[1743676553012,0.832064,83312.0,83311.0,0.0010003]
[1743676554187,0.9488196,83312.0,83311.0,0.0010003]
[1743676555447,0.25213,83290.0,83289.0,0.0001686]
[1743676555714,0.48213,83290.0,83289.0,0.0001686]
[1743676556940,0.48213,83290.0,83289.0,0.0011686]
[1743676559388,0.48213,83290.0,83289.0,0.00152808]
[1743676559945,0.470124,83290.0,83289.0,0.00152808]
[1743676560560,0.48213,83290.0,83289.0,0.00152808]
[1743676562469,0.48213,83290.0,83289.0,8e-08]
[1743676562943,0.252136,83288.0,83286.0,0.000337]
[1743676563141,0.522136,83288.0,83286.0,0.000337]
[1743676563749,0.51013,83288.0,83286.0,0.000337]
[1743676563949,0.522136,83288.0,83286.0,0.000337]
[1743676569898,0.240147,83282.0,83281.0,3e-07]
[1743676570087,0.522154,83282.0,83281.0,3e-07]
[1743676572652,0.522154,83282.0,83281.0,0.0010003]
[1743676573064,0.522154,83282.0,83281.0,3e-07]
[1743676573432,0.522154,83282.0,83281.0,0.0010003]
[1743676574040,0.862154,83282.0,83281.0,0.0010003]
[1743676574245,0.97889801,83282.0,83281.0,0.0010003]
[1743676575324,0.862154,83282.0,83281.0,0.0010003]
[1743676576341,0.862154,83282.0,83281.0,0.0011688]
[1743676576549,0.862154,83282.0,83281.0,8e-07]
[1743676577176,0.910154,83282.0,83281.0,8e-07]
[1743676577831,0.862154,83282.0,83281.0,8e-07]
[1743676578415,0.863154,83282.0,83281.0,8e-07]
[1743676578937,0.523154,83282.0,83281.0,8e-07]
[1743676579513,0.524154,83282.0,83281.0,8e-07]
[1743676579914,0.523154,83282.0,83281.0,8e-07]
[1743676580343,0.522154,83282.0,83281.0,8e-07]
[1743676581808,0.510147,83282.0,83281.0,8e-07]
[1743676581939,0.27,83282.0,83281.0,0.1167564]
[1743676582349,0.510147,83282.0,83281.0,0.1167564]
[1743676582752,0.522154,83282.0,83281.0,0.1167564]
[1743676583568,0.522154,83282.0,83281.0,8e-07]
[1743676586461,0.27,83282.0,83281.0,0.3689134]
[1743676586663,0.27,83282.0,83281.0,0.3569064]
[1743676587219,0.27,83282.0,83281.0,0.1167564]
[1743676587417,0.27,83282.0,83281.0,0.3569064]
[1743676587648,0.522154,83282.0,83281.0,0.1167564]
[1743676587852,0.522154,83282.0,83281.0,8e-07]
[1743676588777,0.522491,83282.0,83281.0,8e-07]
[1743676594484,0.63923501,83282.0,83281.0,8e-07]
[1743676595826,0.012006,83286.0,83281.0,8e-07]
[1743676595827,0.01167931,83310.0,83282.0,0.0479]
[1743676596027,0.012,83332.0,83309.0,0.0951]
[1743676596229,0.09622013,83327.0,83321.0,0.240033]
[1743676596439,0.09,83327.0,83314.0,0.012002]
[1743676596644,0.330018,83327.0,83316.0,0.240049]
[1743676596822,0.09,83327.0,83320.0,0.240038]
[1743676597044,0.09,83327.0,83317.0,0.240047]
[1743676597240,0.09,83327.0,83318.0,0.240043]
[1743676597445,0.09,83327.0,83317.0,0.012002]
[1743676597693,0.09,83327.0,83326.0,0.240021]
[1743676598794,0.091,83327.0,83326.0,0.240021]
[1743676599028,0.332018,83327.0,83321.0,0.240034]
[1743676599223,0.252022,83326.0,83314.0,0.012002]
[1743676599428,0.240024,83325.0,83315.0,0.012002]
[1743676599599,0.012001,83324.0,83314.0,0.252057]
[1743676599805,0.240029,83323.0,83319.0,0.240038]
[1743676600003,0.490029,83323.0,83315.0,0.012002]
[1743676600741,0.240036,83321.0,83317.0,0.240047]
[1743676600906,0.520036,83321.0,83317.0,0.240047]
[1743676601452,0.240041,83319.0,83315.0,0.252053]
[1743676601708,0.252046,83318.0,83313.0,0.240057]
[1743676601891,0.252046,83318.0,83311.0,0.240063]
[1743676601892,0.012002,83316.0,83311.0,0.240063]
[1743676602028,0.012002,83316.0,83307.0,0.252077]
[1743676602029,0.240062,83312.0,83307.0,0.252077]
[1743676602235,0.24,83312.0,83310.0,0.240066]
[1743676602438,0.240067,83310.0,83303.0,0.012004]
[1743676602630,0.240067,83310.0,83308.0,0.24007]
[1743676602631,0.26,83310.0,83308.0,0.24007]
[1743676602871,0.26,83310.0,83309.0,0.24007]
[1743676603064,0.26,83310.0,83309.0,0.252073]
[1743676607854,0.26,83310.0,83309.0,0.3688286]
[1743676608231,0.000337,83327.0,83326.0,0.301922]
[1743676608434,0.150337,83327.0,83326.0,0.4186776]
[1743676611539,0.150337,83327.0,83326.0,0.1666556]
[1743676611736,0.162337,83327.0,83319.0,0.012002]
[1743676612062,0.252024,83326.0,83321.0,0.240029]
[1743676612267,0.252024,83326.0,83322.0,0.1167556]
[1743676612467,0.252024,83326.0,83320.0,0.252038]
[1743676612468,0.522022,83326.0,83320.0,0.252038]
[1743676612608,0.522022,83326.0,83320.0,0.3687936]
[1743676612787,0.522022,83326.0,83312.0,0.05712561]
[1743676612788,0.252036,83321.0,83313.0,0.252059]
[1743676613099,0.512036,83321.0,83320.0,0.00024025]
[1743676621002,0.26,83321.0,83320.0,0.36903485]
[1743676621172,0.26,83321.0,83320.0,0.11699585]
[1743676621379,0.25968197,83321.0,83320.0,0.11699585]
[1743676621579,0.25968197,83321.0,83320.0,0.35703385]
[1743676622768,0.25968197,83321.0,83320.0,0.36903485]
[1743676625262,0.25968197,83321.0,83320.0,0.35703385]
[1743676625492,0.25968197,83321.0,83320.0,0.11716425]
[1743676625672,0.49971697,83321.0,83320.0,0.11716425]
[1743676626027,0.51171797,83321.0,83320.0,0.00040865]
[1743676626188,0.51205477,83321.0,83320.0,0.00040865]
[1743676631755,0.74555438,83321.0,83320.0,6.5e-07]
[1743676632128,1.13485438,83321.0,83320.0,6.5e-07]
[1743676632297,1.14654599,83321.0,83320.0,6.5e-07]
[1743676632467,1.16108684,83321.0,83320.0,6.5e-07]
[1743676632672,1.04434283,83321.0,83320.0,6.5e-07]
[1743676632872,1.02980198,83321.0,83320.0,6.5e-07]
[1743676633113,0.86374638,83321.0,83320.0,6.5e-07]
[1743676633924,0.85205477,83321.0,83320.0,6.5e-07]
[1743676634735,0.86415288,83321.0,83320.0,6.5e-07]
[1743676637428,0.85205477,83321.0,83320.0,6.5e-07]
[1743676637851,0.96879878,83321.0,83320.0,6.5e-07]
[1743676638806,0.85205477,83321.0,83320.0,6.5e-07]
[1743676638947,0.86426354,83321.0,83320.0,6.5e-07]
[1743676639877,0.86426354,83321.0,83320.0,0.00034165]
[1743676642941,0.51205477,83321.0,83320.0,0.00034165]
[1743676646692,0.51205477,83321.0,83320.0,6.5e-07]
[1743676646869,1.08555438,83321.0,83320.0,6.5e-07]
[1743676647650,0.96881037,83321.0,83320.0,6.5e-07]
[1743676648604,0.85205477,83321.0,83320.0,6.5e-07]
[1743676649387,0.51205477,83321.0,83320.0,6.5e-07]
[1743676650637,0.51205477,83321.0,83320.0,0.00016905]
[1743676654433,0.26001877,83321.0,83320.0,0.11692465]
[1743676654635,0.26001877,83321.0,83320.0,0.41766365]
[1743676655807,0.26001877,83321.0,83320.0,0.42516304]
[1743676657103,0.26001877,83321.0,83320.0,0.41766365]
[1743676657520,0.50005377,83321.0,83320.0,0.16562465]
[1743676657919,0.51205477,83321.0,83320.0,0.00016905]
[1743676659184,0.26001877,83321.0,83320.0,0.11692465]
[1743676659410,0.26001877,83321.0,83320.0,0.36896365]
[1743676660149,0.03082878,83321.0,83320.0,0.36896365]
[1743676660875,0.03082878,83321.0,83320.0,0.41586365]
[1743676661767,0.03082878,83321.0,83320.0,0.75586365]
[1743676662404,0.03082878,83321.0,83320.0,0.80196365]
[1743676662608,0.000337,83327.0,83326.0,0.686622]
[1743676662810,8e-07,83335.0,83334.0,0.591997]
[1743676662961,8e-07,83335.0,83334.0,0.81789345]
[1743676663394,8e-07,83335.0,83334.0,0.82539125]
[1743676664042,8e-07,83335.0,83334.0,0.83429687]
[1743676666089,8e-07,83335.0,83334.0,0.85929687]
[1743676666290,0.0041684,83339.0,83338.0,0.70212585]
[1743676666506,0.0041684,83339.0,83338.0,0.81888145]
[1743676667050,0.0041684,83339.0,83338.0,0.84388145]
[1743676667482,0.0041684,83339.0,83338.0,0.85137925]
[1743676669123,0.0041684,83339.0,83338.0,0.84388145]
[1743676670092,0.0041684,83339.0,83338.0,0.81888145]
[1743676670397,0.0141684,83339.0,83338.0,0.8043406]
[1743676675262,0.0141684,83339.0,83338.0,0.81888145]
[1743676679369,0.0041684,83339.0,83338.0,0.81888145]
[1743676679552,0.0041684,83339.0,83338.0,0.82637925]
[1743676682179,0.0141684,83339.0,83338.0,0.82637925]
[1743676682885,0.0141684,83339.0,83338.0,0.81888145]
[1743676685222,0.0001683,83368.0,83343.0,0.59197]
[1743676685373,0.0001683,83368.0,83343.0,0.72326645]
[1743676685579,0.2402452,83366.0,83343.0,0.72326645]
[1743676685784,0.239908,83365.0,83343.0,0.72326645]
[1743676686403,0.239908,83365.0,83343.0,0.73076333]
[1743676687475,0.0101684,83344.0,83343.0,0.73076333]
[1743676688779,0.0101684,83344.0,83343.0,0.72326645]
[1743676691949,0.0101684,83344.0,83343.0,0.7087256]
[1743676695405,0.2621354,83344.0,83343.0,0.1167556]
[1743676695816,0.239985,83339.0,83335.0,0.0003368]
[1743676696030,0.251988,83337.0,83336.0,0.1167556]
[1743676696233,0.251991,83336.0,83335.0,0.0003368]
[1743676696434,0.531991,83336.0,83335.0,0.0003368]
[1743676696640,0.28,83336.0,83335.0,0.0123358]
[1743676696889,0.28,83336.0,83335.0,0.2523308]
[1743676697520,0.28,83336.0,83335.0,0.2403318]
[1743676697882,0.28,83336.0,83335.0,0.0003368]
[1743676698084,0.28,83336.0,83335.0,0.3690864]
[1743676698863,0.28,83336.0,83335.0,0.1170924]
[1743676699064,0.519992,83336.0,83335.0,0.1170924]
[1743676699272,0.28,83336.0,83335.0,0.1170924]
[1743676699842,0.28,83336.0,83335.0,0.3690864]
[1743676701636,0.531991,83336.0,83335.0,0.0003368]
[1743676702673,0.577291,83336.0,83335.0,0.0003368]
[1743676714246,0.69156404,83336.0,83335.0,0.0003368]
[1743676714554,0.577291,83336.0,83335.0,0.0003368]
[1743676717519,0.31140971,83336.0,83335.0,0.0003368]
[1743676718901,0.26610971,83336.0,83335.0,0.0003368]
[1743676722704,0.60610971,83336.0,83335.0,0.0003368]
[1743676722876,0.640794,83335.0,83334.0,6e-07]
[1743676723080,1.19069361,83335.0,83334.0,6e-07]
[1743676723284,1.21023446,83335.0,83334.0,6e-07]
[1743676724776,1.21423446,83335.0,83334.0,6e-07]
[1743676726591,1.21823446,83335.0,83334.0,6e-07]
[1743676727452,1.24323446,83335.0,83334.0,6e-07]
[1743676728052,0.642936,83321.0,83320.0,6.5e-07]
[1743676728365,0.642936,83321.0,83281.0,0.0493008]
[1743676728366,0.592075,83308.0,83307.0,5e-08]
[1743676728568,1.0435306,83308.0,83307.0,5e-08]
[1743676729789,1.06307145,83308.0,83307.0,5e-08]
[1743676730202,1.07193538,83308.0,83307.0,5e-08]
[1743676730404,1.18867939,83308.0,83307.0,5e-08]
[1743676730607,1.19067939,83308.0,83307.0,5e-08]
[1743676731388,1.18867939,83308.0,83307.0,5e-08]
[1743676731821,1.19067939,83308.0,83307.0,5e-08]
[1743676732029,1.19267939,83308.0,83307.0,5e-08]
[1743676733363,1.21767939,83308.0,83307.0,5e-08]
[1743676735004,1.19267939,83308.0,83307.0,5e-08]
[1743676735428,1.21767939,83308.0,83307.0,5e-08]
[1743676735958,1.19267939,83308.0,83307.0,5e-08]
[1743676736343,1.21767939,83308.0,83307.0,5e-08]
[1743676738576,1.19267939,83308.0,83307.0,5e-08]
[1743676739516,1.18767939,83308.0,83307.0,5e-08]
[1743676739846,1.19267939,83308.0,83307.0,5e-08]
[1743676740427,1.18767939,83308.0,83307.0,5e-08]
[1743676741307,1.19267939,83308.0,83307.0,5e-08]
[1743676741669,1.18767939,83308.0,83307.0,5e-08]
[1743676742053,1.19267939,83308.0,83307.0,5e-08]
[1743676742253,1.18767939,83308.0,83307.0,5e-08]
[1743676742453,1.19267939,83308.0,83307.0,5e-08]
[1743676742775,1.18767939,83308.0,83307.0,5e-08]
[1743676742972,1.19267939,83308.0,83307.0,5e-08]
[1743676745657,1.19301639,83308.0,83307.0,5e-08]
[1743676745889,1.21801639,83308.0,83307.0,5e-08]
[1743676746079,1.21801639,83308.0,83281.0,0.0040008]
[1743676746080,0.252154,83282.0,83281.0,0.0040008]
[1743676746251,0.502154,83282.0,83281.0,0.0040008]
[1743676747543,0.262007,83282.0,83281.0,0.0040008]
[1743676747795,0.502154,83282.0,83281.0,0.0943008]
[1743676751590,0.61889801,83282.0,83281.0,0.0040008]
[1743676752806,0.502154,83282.0,83281.0,0.0040008]
[1743676755249,0.842154,83282.0,83281.0,0.0040008]
[1743676759804,0.26304345,83282.0,83281.0,0.0040008]
[1743676771709,0.01088945,83282.0,83281.0,0.0510008]
[1743676771888,0.25103645,83282.0,83281.0,0.0510008]
[1743676772243,0.26304345,83282.0,83281.0,0.0510008]
[1743676772983,0.01088945,83282.0,83281.0,0.0510008]
[1743676773316,0.26304345,83282.0,83281.0,0.0510008]
[1743676773561,0.01088945,83282.0,83281.0,0.2911508]
[1743676773807,0.02289645,83282.0,83281.0,0.0510008]
[1743676774698,0.26304345,83282.0,83281.0,0.0510008]
[1743676777106,0.26304345,83282.0,83281.0,0.0040008]
[1743676779425,0.01088945,83282.0,83281.0,0.1327634]
[1743676779636,0.01088945,83282.0,83281.0,0.4714134]
[1743676780007,0.01088945,83282.0,83281.0,0.48335406]
[1743676780787,0.25103645,83282.0,83281.0,0.23119706]
[1743676781074,0.01088945,83282.0,83281.0,0.24320406]
[1743676781281,0.01088945,83282.0,83281.0,0.2192564]
[1743676781432,0.26338065,83282.0,83281.0,0.2192564]
[1743676781638,0.26338065,83282.0,83281.0,0.1025008]
[1743676781797,0.26338065,83282.0,83281.0,0.0539008]
[1743676784045,0.01122665,83282.0,83281.0,0.0539008]
[1743676784353,0.25137365,83282.0,83281.0,0.0539008]
[1743676784548,0.01122665,83282.0,83281.0,0.2940508]
[1743676784773,0.01122665,83282.0,83281.0,0.0539008]
[1743676784928,0.25137365,83282.0,83281.0,0.0539008]
[1743676785827,0.26338065,83282.0,83281.0,0.0050008]
[1743676786727,0.60338065,83282.0,83281.0,0.0050008]
[1743676787862,0.72013625,83282.0,83281.0,8e-07]
[1743676788073,0.592179,83274.0,83266.0,0.10718828]
[1743676788276,0.862179,83274.0,83266.0,0.10718828]
[1743676789410,0.862179,83274.0,83273.0,0.0011684]
[1743676790835,0.862179,83274.0,83273.0,0.0001684]
[1743676791165,0.27,83274.0,83273.0,0.0001684]
[1743676791376,0.27,83274.0,83273.0,0.0483684]
[1743676791796,0.282008,83274.0,83273.0,0.0483684]
[1743676792665,0.282008,83274.0,83273.0,0.0001684]
[1743676792868,0.282008,83274.0,83273.0,0.116924]
[1743676792869,0.522179,83274.0,83273.0,0.116924]
[1743676793281,0.522179,83274.0,83273.0,0.0001684]
[1743676795927,0.510171,83274.0,83273.0,0.0001684]
[1743676796244,0.522179,83274.0,83273.0,0.0001684]
[1743676799099,0.53331846,83274.0,83273.0,0.0001684]
[1743676801233,0.28113946,83274.0,83273.0,0.0001684]
[1743676801438,0.28113946,83274.0,83273.0,0.2523494]
[1743676801811,0.27,83274.0,83273.0,0.369105]
[1743676802014,0.27,83274.0,83273.0,0.417205]
[1743676803553,0.27,83274.0,83273.0,0.466705]
[1743676803708,0.27,83274.0,83273.0,0.214524]
[1743676804115,0.510171,83274.0,83273.0,0.214524]
[1743676805113,0.27,83274.0,83273.0,0.214524]
[1743676805324,0.510171,83274.0,83273.0,0.214524]
[1743676805729,0.510171,83274.0,83273.0,0.116924]
[1743676805914,0.522179,83274.0,83273.0,0.116924]
[1743676806155,0.510171,83274.0,83273.0,0.116924]
[1743676806565,0.522179,83274.0,83273.0,0.0001684]
[1743676807654,0.53331598,83274.0,83273.0,0.0001684]
[1743676808484,0.55560758,83274.0,83273.0,0.0001684]
[1743676810166,0.5912726,83274.0,83273.0,0.0001684]
[1743676811216,0.6091097,83274.0,83273.0,0.0001684]
[1743676814513,0.9942097,83274.0,83273.0,4e-07]
[1743676814769,1.11095371,83274.0,83273.0,4e-07]
[1743676815353,1.15905371,83274.0,83273.0,4e-07]
[1743676815572,0.25054784,83252.0,83251.0,0.004337]
[1743676815710,0.52054784,83252.0,83251.0,0.004337]
[1743676815910,0.56624784,83252.0,83251.0,0.004337]
[1743676816120,0.52054784,83252.0,83251.0,0.004337]
[1743676816321,0.63729185,83252.0,83251.0,0.004337]
[1743676816527,0.52054784,83252.0,83251.0,0.004337]
[1743676816838,0.54952192,83252.0,83251.0,0.004337]
[1743676817053,0.57181352,83252.0,83251.0,0.004337]
[1743676818544,0.60745306,83252.0,83251.0,0.004337]
[1743676818751,0.72419707,83252.0,83251.0,0.004337]
[1743676819749,0.68855753,83252.0,83251.0,0.004337]
[1743676819912,0.25226,83247.0,83227.0,0.0002]
[1743676820128,0.86226,83247.0,83227.0,0.0002]
[1743676820331,0.91096,83247.0,83227.0,0.0002]
[1743676820512,1.02770401,83247.0,83227.0,0.0002]
[1743676820718,1.05667809,83247.0,83227.0,0.0002]
[1743676821067,0.96222568,83247.0,83227.0,0.0002]
[1743676822476,0.91352568,83247.0,83227.0,0.0002]
[1743676822877,0.56151368,83247.0,83241.0,0.240263]
[1743676823073,0.32126568,83247.0,83246.0,0.3690986]
[1743676823348,0.32126568,83247.0,83246.0,0.1168356]
[1743676823555,0.3043036,83247.0,83246.0,0.1168356]
[1743676823762,0.282012,83247.0,83246.0,8e-05]
[1743676825953,0.240309,83226.0,83223.0,0.25187273]
[1743676826179,0.500309,83226.0,83224.0,0.1167556]
[1743676826595,0.012015,83225.0,83224.0,0.1167556]
[1743676826804,0.252015,83225.0,83224.0,0.1167556]
[1743676827013,0.252337,83222.0,83221.0,0.004]
[1743676827223,0.502337,83222.0,83221.0,0.004]
[1743676828951,0.51342648,83222.0,83221.0,0.004]
[1743676829944,0.51342648,83222.0,83221.0,0.0041686]
[1743676830748,0.58874874,83222.0,83221.0,0.0041686]
[1743676830954,0.70549275,83222.0,83221.0,0.0041686]
[1743676831160,1.04549275,83222.0,83221.0,0.0041686]
[1743676831372,1.04549275,83222.0,83221.0,6e-07]
[1743676831373,1.16224835,83222.0,83221.0,6e-07]
[1743676832362,1.16224835,83222.0,83200.0,0.108]
[1743676832363,0.25084233,83201.0,83200.0,0.108]
[1743676832662,0.53084233,83201.0,83200.0,0.108]
[1743676833244,0.55299466,83201.0,83200.0,0.108]
[1743676833871,0.89299466,83201.0,83200.0,0.108]
[1743676834290,0.63221894,83201.0,83200.0,0.108]
[1743676834710,1.01741894,83201.0,83200.0,0.108]
[1743676834942,1.13416295,83201.0,83200.0,0.108]
[1743676835146,1.08896295,83201.0,83200.0,0.108]
[1743676835357,0.97221894,83201.0,83200.0,0.108]
[1743676835550,0.95719311,83201.0,83200.0,0.108]
[1743676835751,0.96470533,83201.0,83200.0,0.108]
[1743676838493,0.592409,83198.0,83197.0,0.0001686]
[1743676838744,0.70915301,83198.0,83197.0,0.0001686]
[1743676838954,0.97915301,83198.0,83197.0,0.0001686]
[1743676839168,0.97915301,83198.0,83197.0,6e-07]
[1743676839383,0.97915301,83198.0,83191.0,6e-07]
[1743676839384,0.592427,83192.0,83191.0,6e-07]
[1743676839535,0.872427,83192.0,83191.0,6e-07]
[1743676840166,0.9087549,83192.0,83191.0,6e-07]
[1743676840371,1.14225451,83192.0,83191.0,6e-07]
[1743676841162,1.19978961,83192.0,83191.0,6e-07]
[1743676841565,1.20078961,83192.0,83191.0,6e-07]
[1743676841907,1.0850456,83192.0,83191.0,6e-07]
[1743676842313,0.012023,83168.0,83162.0,0.0001686]
[1743676842520,0.24049,83164.0,83163.0,0.1167556]
[1743676842717,0.24,83164.0,83163.0,0.1167556]
[1743676842926,0.252024,83164.0,83163.0,0.1167556]
[1743676843360,0.24,83164.0,83163.0,0.1167556]
[1743676844123,0.26870286,83164.0,83163.0,0.1167556]
[1743676846326,0.25103956,83164.0,83163.0,0.2099556]
[1743676846529,0.25103956,83164.0,83163.0,0.2219796]
[1743676846732,0.01103956,83164.0,83163.0,0.56438431]
[1743676847106,0.01839244,83186.0,83185.0,0.252448]
[1743676847310,0.27839244,83186.0,83184.0,0.24043]
[1743676847510,0.27839244,83186.0,83184.0,0.1167556]
[1743676847718,0.26,83186.0,83184.0,0.1167556]
[1743676847921,0.26,83186.0,83184.0,0.3571846]
[1743676848125,0.00431623,83186.0,83184.0,0.3571846]
[1743676848325,0.00431623,83186.0,83184.0,0.1167556]
[1743676849372,0.240435,83183.0,83174.0,0.012022]
[1743676849574,0.23,83183.0,83177.0,0.3572036]
[1743676849823,0.23,83183.0,83181.0,0.240438]
[1743676850017,0.23,83183.0,83182.0,0.1167556]
[1743676852260,0.242021,83183.0,83182.0,0.1167556]
[1743676852417,0.240441,83181.0,83173.0,0.012023]
[1743676852680,0.28,83181.0,83177.0,0.240449]
[1743676852930,0.28,83181.0,83178.0,0.3572026]
[1743676853402,0.240442,83180.0,83178.0,0.1167556]
[1743676853609,0.240476,83169.0,83160.0,0.012025]
[1743676853813,0.240483,83166.0,83161.0,0.1167556]
[1743676854061,0.25,83166.0,83164.0,0.240486]
[1743676854219,0.25,83166.0,83165.0,0.1287796]
[1743676854414,0.25,83166.0,83165.0,0.1167556]
[1743676855127,0.28993666,83166.0,83165.0,0.1287796]
[1743676856453,0.28993666,83166.0,83165.0,0.14332045]
[1743676856650,0.2721871,83166.0,83165.0,0.14332045]
[1743676857193,0.2721871,83166.0,83165.0,0.1287796]
[1743676857598,0.0003376,83186.0,83185.0,0.012021]
[1743676857802,0.2503376,83186.0,83185.0,0.3692036]
[1743676860441,0.2503376,83186.0,83185.0,0.43204445]
[1743676860651,0.2503376,83186.0,83185.0,0.78398784]
[1743676861059,0.0003376,83186.0,83185.0,0.78398784]
[1743676862332,0.0003376,83186.0,83185.0,0.79314459]
[1743676862695,0.3507626,83186.0,83185.0,0.13129645]
[1743676862907,0.1103376,83186.0,83185.0,0.3692036]
[1743676863368,0.1103376,83186.0,83185.0,0.1167556]
[1743676864058,0.1103376,83186.0,83185.0,0.1287766]
[1743676865435,0.1103376,83186.0,83185.0,0.13118069]
[1743676865655,0.1103376,83186.0,83185.0,0.1287766]
[1743676866838,0.1103376,83186.0,83172.0,0.012023]
[1743676866839,0.012021,83183.0,83172.0,0.012023]
[1743676866997,0.240439,83181.0,83173.0,0.1167556]
[1743676867197,0.252465,83180.0,83174.0,0.012022]
[1743676867399,0.26,83180.0,83176.0,0.012022]
[1743676867618,0.26,83180.0,83179.0,0.012022]
[1743676867859,0.26,83180.0,83179.0,0.1287776]
[1743676868290,0.26,83180.0,83179.0,0.13118179]
[1743676868534,0.26,83180.0,83179.0,0.1287776]
[1743676868984,0.26,83180.0,83179.0,0.14331845]
[1743676869393,0.26,83180.0,83179.0,0.48331845]
[1743676869524,0.0003376,83186.0,83185.0,0.252448]
[1743676869726,0.0203376,83186.0,83185.0,0.3692036]
[1743676870410,0.0203376,83186.0,83185.0,0.38374445]
[1743676870946,0.0003376,83186.0,83185.0,0.38374445]
[1743676871762,0.012017,83212.0,83185.0,0.37172345]
[1743676872058,0.012017,83211.0,83204.0,0.012018]
[1743676872273,0.242017,83211.0,83205.0,0.1167556]
[1743676872459,0.240359,83209.0,83205.0,0.1167556]
[1743676872665,0.240364,83207.0,83205.0,0.1167556]
[1743676872838,0.522382,83207.0,83205.0,0.1167556]
[1743676873241,0.27,83207.0,83205.0,0.1167556]
[1743676873829,0.282018,83207.0,83205.0,0.1167556]
[1743676874228,0.012018,83206.0,83205.0,0.1167556]
[1743676874457,0.292018,83206.0,83205.0,0.1167556]
[1743676876099,0.28,83206.0,83205.0,0.1287736]
[1743676877308,0.28,83206.0,83205.0,0.3691436]
[1743676878583,0.28,83206.0,83205.0,0.1167556]
[1743676878869,0.28,83206.0,83205.0,0.3571256]
[1743676879031,0.28,83206.0,83205.0,0.3691436]
[1743676883883,0.28,83206.0,83205.0,0.38368445]
[1743676884210,0.28,83206.0,83205.0,0.42958445]
[1743676884420,0.000337,83207.0,83206.0,0.36655885]
[1743676884724,0.000337,83207.0,83206.0,0.48331445]
[1743676885459,0.004,83219.0,83218.0,0.70318885]
[1743676885668,0.004,83219.0,83218.0,0.81994445]
[1743676885917,0.004,83219.0,83218.0,0.82494445]
[1743676886227,0.004,83219.0,83218.0,0.81994445]
[1743676886530,0.004,83219.0,83218.0,0.83207874]
[1743676887142,0.004,83219.0,83218.0,0.77997874]